[Event "Live Chess"]
[Site "Chess.com"]
[Date "2023.05.21"]
[Round "-"]
[White "peter-785"]
[Black "Purple1szed"]
[Result "0-1"]
[WhiteElo "1183"]
[BlackElo "1830"]
[TimeControl "300"]
[EndTime "3:28:27 PDT"]
[Termination "Purple1szed won by resignation"]

1. e4 {[%clk 0:04:59.1]} 1... e5 {[%clk 0:04:58.9]} 2. Nf3 {[%clk 0:04:58.1]}
2... Nc6 {[%clk 0:04:58.3]} 3. Bc4 {[%clk 0:04:57.1]} 3... Nf6 {[%clk
0:04:57.5]} 4. Nc3 {[%clk 0:04:54.4]} 4... Bc5 {[%clk 0:04:56.1]} 5. O-O {[%clk
0:04:51.6]} 5... d6 {[%clk 0:04:54.8]} 6. d3 {[%clk 0:04:50.3]} 6... h6 {[%clk
0:04:52.8]} 7. Re1 {[%clk 0:04:44.1]} 7... Bg4 {[%clk 0:04:51.2]} 8. h3 {[%clk
0:04:37.4]} 8... Bh5 {[%clk 0:04:48.8]} 9. Be3 {[%clk 0:04:32.7]} 9... O-O
{[%clk 0:04:45]} 10. Bxc5 {[%clk 0:04:30.1]} 10... dxc5 {[%clk 0:04:44.9]} 11.
g4 {[%clk 0:04:04.3]} 11... Nxg4 {[%clk 0:04:34.4]} 12. hxg4 {[%clk 0:04:01.4]}
12... Bxg4 {[%clk 0:04:34.3]} 13. Re3 {[%clk 0:03:40.5]} 13... Nd4 {[%clk
0:04:28.5]} 14. Qd2 {[%clk 0:02:11.4]} 14... Nxf3+ {[%clk 0:04:21.5]} 15. Rxf3
{[%clk 0:02:09.3]} 15... Bxf3 {[%clk 0:04:21.4]} 0-1

[Event "Live Chess"]
[Site "Chess.com"]
[Date "2023.05.21"]
[Round "-"]
[White "ameetghasi100"]
[Black "WombatIn_A_Box"]
[Result "1-0"]
[WhiteElo "2615"]
[BlackElo "570"]
[TimeControl "300"]
[EndTime "3:28:34 PDT"]
[Termination "ameetghasi100 won by checkmate"]

1. d4 {[%clk 0:04:57.7]} 1... d5 {[%clk 0:04:57.2]} 2. c4 {[%clk 0:04:55.6]}
2... dxc4 {[%clk 0:04:54.5]} 3. e4 {[%clk 0:04:51]} 3... Nf6 {[%clk 0:04:50.3]}
4. Nc3 {[%clk 0:04:42.6]} 4... Nc6 {[%clk 0:04:44.1]} 5. Be3 {[%clk 0:04:25.2]}
5... Bg4 {[%clk 0:04:37.2]} 6. f3 {[%clk 0:04:22.4]} 6... Bh5 {[%clk 0:04:31.6]}
7. g4 {[%clk 0:04:19.3]} 7... Bg6 {[%clk 0:04:28.3]} 8. h4 {[%clk 0:04:18.7]}
8... h5 {[%clk 0:04:22.9]} 9. g5 {[%clk 0:04:17.9]} 9... Nd7 {[%clk 0:04:12.8]}
10. Nge2 {[%clk 0:04:17.2]} 10... f6 {[%clk 0:04:11.7]} 11. Nf4 {[%clk
0:04:15.2]} 11... Bh7 {[%clk 0:04:04.4]} 12. Ne6 {[%clk 0:04:11.7]} 12... Qc8
{[%clk 0:03:52.3]} 13. Nd5 {[%clk 0:04:10.8]} 13... fxg5 {[%clk 0:03:44.9]} 14.
Ndxc7+ {[%clk 0:04:07.2]} 14... Kf7 {[%clk 0:03:38]} 15. Nxg5+ {[%clk 0:04:06]}
15... Kg8 {[%clk 0:03:31.2]} 16. Bh3 {[%clk 0:04:05.4]} 16... Qxc7 {[%clk
0:03:26.5]} 17. Be6# {[%clk 0:04:04.5]} 1-0

[Event "Live Chess"]
[Site "Chess.com"]
[Date "2023.05.21"]
[Round "-"]
[White "OleksiyJr1"]
[Black "ranvir123"]
[Result "1-0"]
[WhiteElo "985"]
[BlackElo "951"]
[TimeControl "300"]
[EndTime "3:28:42 PDT"]
[Termination "OleksiyJr1 won by resignation"]

1. e4 {[%clk 0:04:58.8]} 1... e5 {[%clk 0:04:59.4]} 2. Nf3 {[%clk 0:04:58.2]}
2... Nc6 {[%clk 0:04:58.8]} 3. Bc4 {[%clk 0:04:57.6]} 3... Nd4 {[%clk
0:04:55.6]} 4. Nxd4 {[%clk 0:04:46.9]} 4... exd4 {[%clk 0:04:52.8]} 5. f4 {[%clk
0:04:45.6]} 5... Qh4+ {[%clk 0:04:49.6]} 6. g3 {[%clk 0:04:44]} 6... Qh3 {[%clk
0:04:45]} 7. Qf3 {[%clk 0:04:36.2]} 7... Nf6 {[%clk 0:04:41.4]} 8. e5 {[%clk
0:04:35]} 8... Nh5 {[%clk 0:04:34.2]} 9. d3 {[%clk 0:04:31]} 9... Bb4+ {[%clk
0:04:31.3]} 10. Bd2 {[%clk 0:04:28.4]} 10... Bxd2+ {[%clk 0:04:29.7]} 11. Nxd2
{[%clk 0:04:28.3]} 11... f6 {[%clk 0:04:24]} 12. exf6 {[%clk 0:04:24.2]} 12...
Nxf6 {[%clk 0:04:21.9]} 13. O-O-O {[%clk 0:04:21.2]} 13... d5 {[%clk 0:04:17.5]}
14. Rde1+ {[%clk 0:04:18.5]} 1-0

[Event "Live Chess"]
[Site "Chess.com"]
[Date "2023.05.21"]
[Round "-"]
[White "seasidecastle27"]
[Black "jagbama"]
[Result "1-0"]
[WhiteElo "1906"]
[BlackElo "1177"]
[TimeControl "300"]
[EndTime "3:28:43 PDT"]
[Termination "seasidecastle27 won by checkmate"]

1. d4 {[%clk 0:04:57.5]} 1... d5 {[%clk 0:04:53.5]} 2. Nf3 {[%clk 0:04:56.5]}
2... Nf6 {[%clk 0:04:50.3]} 3. Bf4 {[%clk 0:04:54.9]} 3... e6 {[%clk 0:04:46.1]}
4. e3 {[%clk 0:04:54]} 4... c5 {[%clk 0:04:43.9]} 5. c3 {[%clk 0:04:52.3]} 5...
c4 {[%clk 0:04:39]} 6. Nbd2 {[%clk 0:04:48.3]} 6... Nbd7 {[%clk 0:04:31.5]} 7.
Ne5 {[%clk 0:04:40.8]} 7... b5 {[%clk 0:04:16.2]} 8. a3 {[%clk 0:04:35.5]} 8...
Bb7 {[%clk 0:04:06.9]} 9. Be2 {[%clk 0:04:32.2]} 9... h6 {[%clk 0:04:02.2]} 10.
Bf3 {[%clk 0:04:30.1]} 10... g5 {[%clk 0:03:54.3]} 11. Bg3 {[%clk 0:04:19.5]}
11... h5 {[%clk 0:03:50.3]} 12. Nxd7 {[%clk 0:04:14.5]} 12... Nxd7 {[%clk
0:03:39.4]} 13. Bxh5 {[%clk 0:04:11.6]} 13... Nf6 {[%clk 0:03:35.7]} 14. Bf3
{[%clk 0:04:06.5]} 14... Ne4 {[%clk 0:03:30.6]} 15. Bxe4 {[%clk 0:03:55.1]}
15... dxe4 {[%clk 0:03:29.5]} 16. Qe2 {[%clk 0:03:47.2]} 16... f5 {[%clk
0:03:24.3]} 17. f3 {[%clk 0:03:39.1]} 17... Bd6 {[%clk 0:03:20.5]} 18. Bxd6
{[%clk 0:03:33.7]} 18... Qxd6 {[%clk 0:03:19.3]} 19. fxe4 {[%clk 0:03:32.9]}
19... Rxh2 {[%clk 0:03:14.1]} 20. O-O-O {[%clk 0:03:25.7]} 20... Bxe4 {[%clk
0:02:47.4]} 21. Nxe4 {[%clk 0:03:23.6]} 21... fxe4 {[%clk 0:02:45.1]} 22. Qg4
{[%clk 0:03:18.6]} 22... Rxh1 {[%clk 0:02:25.5]} 23. Rxh1 {[%clk 0:03:15.5]}
23... Kd7 {[%clk 0:02:20.9]} 24. Rh7+ {[%clk 0:03:09.1]} 24... Kc6 {[%clk
0:02:18.1]} 25. Qxe4+ {[%clk 0:03:05.3]} 25... Qd5 {[%clk 0:02:11.1]} 26. Qg4
{[%clk 0:03:03.1]} 26... a5 {[%clk 0:02:04.1]} 27. e4 {[%clk 0:03:01.5]} 27...
Qd8 {[%clk 0:01:38.7]} 28. Qxe6+ {[%clk 0:02:58]} 28... Qd6 {[%clk 0:01:36.3]}
29. d5+ {[%clk 0:02:49]} 29... Kc5 {[%clk 0:01:24.6]} 30. Qxd6+ {[%clk
0:02:45.7]} 30... Kxd6 {[%clk 0:01:23.4]} 31. Rh6+ {[%clk 0:02:43.3]} 31... Ke5
{[%clk 0:01:22.4]} 32. Re6+ {[%clk 0:02:40]} 32... Kf4 {[%clk 0:01:19.5]} 33. d6
{[%clk 0:02:37.4]} 33... g4 {[%clk 0:01:18.2]} 34. e5 {[%clk 0:02:34.6]} 34...
Ke3 {[%clk 0:01:03.9]} 35. d7 {[%clk 0:02:26.8]} 35... Rd8 {[%clk 0:00:59.5]}
36. Rd6 {[%clk 0:02:23.8]} 36... Kf2 {[%clk 0:00:32]} 37. e6 {[%clk 0:02:22]}
37... Kxg2 {[%clk 0:00:31.1]} 38. e7 {[%clk 0:02:20.5]} 38... Rh8 {[%clk
0:00:28.9]} 39. e8=Q {[%clk 0:02:15.9]} 39... Rh1+ {[%clk 0:00:27.1]} 40. Rd1
{[%clk 0:02:13.2]} 40... Rh3 {[%clk 0:00:19.4]} 41. Qe2+ {[%clk 0:02:08.7]}
41... Kg3 {[%clk 0:00:16.8]} 42. Rg1+ {[%clk 0:02:05.3]} 42... Kf4 {[%clk
0:00:15.4]} 43. Rxg4+ {[%clk 0:02:03.3]} 43... Kf5 {[%clk 0:00:12.8]} 44. Qe4+
{[%clk 0:02:01.3]} 44... Kf6 {[%clk 0:00:11.6]} 45. Rf4+ {[%clk 0:01:59.7]}
45... Kg5 {[%clk 0:00:10.6]} 46. Qf5+ {[%clk 0:01:57.8]} 46... Kh6 {[%clk
0:00:08.9]} 47. Qxh3+ {[%clk 0:01:56.1]} 47... Kg5 {[%clk 0:00:07.8]} 48. Qg3+
{[%clk 0:01:54.5]} 48... Kh5 {[%clk 0:00:06.8]} 49. Rh4# {[%clk 0:01:53.2]} 1-0

[Event "Live Chess"]
[Site "Chess.com"]
[Date "2023.05.21"]
[Round "-"]
[White "McSlash1"]
[Black "manthanit"]
[Result "1-0"]
[WhiteElo "2021"]
[BlackElo "1090"]
[TimeControl "300"]
[EndTime "3:28:52 PDT"]
[Termination "McSlash1 won by checkmate"]

1. e4 {[%clk 0:04:59.5]} 1... e6 {[%clk 0:04:59]} 2. d4 {[%clk 0:04:58.5]} 2...
d5 {[%clk 0:04:58.4]} 3. Nd2 {[%clk 0:04:57.4]} 3... dxe4 {[%clk 0:04:56.2]} 4.
Nxe4 {[%clk 0:04:57.3]} 4... Nf6 {[%clk 0:04:55.4]} 5. Nxf6+ {[%clk 0:04:57]}
5... Qxf6 {[%clk 0:04:54.1]} 6. Nf3 {[%clk 0:04:56.9]} 6... Nc6 {[%clk
0:04:49.9]} 7. Bd3 {[%clk 0:04:56.5]} 7... Bd7 {[%clk 0:04:48.5]} 8. Bg5 {[%clk
0:04:55]} 8... Nxd4 {[%clk 0:04:29.4]} 9. Bxf6 {[%clk 0:04:52.2]} 9... Nxf3+
{[%clk 0:04:29]} 10. Qxf3 {[%clk 0:04:50.9]} 10... gxf6 {[%clk 0:04:28.7]} 11.
Qxb7 {[%clk 0:04:50.2]} 11... Bg7 {[%clk 0:04:22.5]} 12. Qxa8+ {[%clk
0:04:48.3]} 12... Ke7 {[%clk 0:04:22.2]} 13. Qxa7 {[%clk 0:04:46.5]} 13... f5
{[%clk 0:04:21.5]} 14. O-O-O {[%clk 0:04:45.4]} 14... Be5 {[%clk 0:04:17]} 15.
g3 {[%clk 0:04:36.9]} 15... c6 {[%clk 0:04:13]} 16. Bxf5 {[%clk 0:04:33.5]}
16... exf5 {[%clk 0:04:11.3]} 17. Rxd7+ {[%clk 0:04:31.4]} 17... Kf6 {[%clk
0:04:08.6]} 18. Rxf7+ {[%clk 0:04:30.5]} 18... Kg5 {[%clk 0:04:07.4]} 19. Qe7+
{[%clk 0:04:28.8]} 19... Kg4 {[%clk 0:04:02]} 20. Qxe5 {[%clk 0:04:26.5]} 20...
Kf3 {[%clk 0:04:01.1]} 21. Rxf5+ {[%clk 0:04:23.4]} 21... Kg2 {[%clk 0:04:00.4]}
22. Qe4+ {[%clk 0:04:21.9]} 22... Kh3 {[%clk 0:03:58.1]} 23. Rh5# {[%clk
0:04:21.6]} 1-0

[Event "Live Chess"]
[Site "Chess.com"]
[Date "2023.05.21"]
[Round "-"]
[White "Woodpusher500"]
[Black "LiamBellwood"]
[Result "0-1"]
[WhiteElo "1088"]
[BlackElo "1936"]
[TimeControl "300"]
[EndTime "3:29:01 PDT"]
[Termination "LiamBellwood won by resignation"]

1. e4 {[%clk 0:04:57.1]} 1... e6 {[%clk 0:04:59.9]} 2. d4 {[%clk 0:04:54.3]}
2... d5 {[%clk 0:04:59.8]} 3. Nc3 {[%clk 0:04:50.4]} 3... Bb4 {[%clk 0:04:57.8]}
4. exd5 {[%clk 0:04:28.5]} 4... exd5 {[%clk 0:04:57.7]} 5. Qf3 {[%clk
0:04:14.8]} 5... Ne7 {[%clk 0:04:53]} 6. Bd3 {[%clk 0:04:05.7]} 6... Be6 {[%clk
0:04:47.4]} 7. Bf4 {[%clk 0:03:52.5]} 7... Qd7 {[%clk 0:04:46.5]} 8. Ne2 {[%clk
0:03:46.9]} 8... Nbc6 {[%clk 0:04:40.9]} 9. a3 {[%clk 0:03:41.4]} 9... Bxc3+
{[%clk 0:04:39.9]} 10. Nxc3 {[%clk 0:03:38.7]} 10... Bg4 {[%clk 0:04:39.8]} 11.
Qg3 {[%clk 0:03:28.2]} 11... O-O-O {[%clk 0:04:38.4]} 12. O-O {[%clk 0:03:16.1]}
12... Bf5 {[%clk 0:04:34.3]} 13. Rad1 {[%clk 0:02:59.7]} 13... Bxd3 {[%clk
0:04:21.6]} 14. Rxd3 {[%clk 0:02:52]} 14... Nf5 {[%clk 0:04:19.9]} 15. Qg4
{[%clk 0:02:38.4]} 15... Nfxd4 {[%clk 0:04:14.5]} 16. Qxd7+ {[%clk 0:02:32.7]}
16... Rxd7 {[%clk 0:04:14.4]} 17. Rd2 {[%clk 0:02:20.4]} 17... Re8 {[%clk
0:04:12.7]} 18. Be3 {[%clk 0:02:07.8]} 18... Nf5 {[%clk 0:04:02.9]} 19. Bf4
{[%clk 0:01:53.6]} 19... d4 {[%clk 0:03:55.3]} 20. Nb5 {[%clk 0:01:33]} 20... a6
{[%clk 0:03:53.9]} 21. Nxc7 {[%clk 0:01:24.6]} 21... Rxc7 {[%clk 0:03:53.8]} 22.
Bxc7 {[%clk 0:01:22]} 22... Kxc7 {[%clk 0:03:53.7]} 23. Rfd1 {[%clk 0:01:10.3]}
23... b5 {[%clk 0:03:51.7]} 24. c3 {[%clk 0:01:08.1]} 24... Rd8 {[%clk
0:03:45.4]} 25. cxd4 {[%clk 0:01:03.1]} 25... Nfxd4 {[%clk 0:03:44.3]} 26. f3
{[%clk 0:00:46]} 26... Nb3 {[%clk 0:03:35.9]} 27. Rxd8 {[%clk 0:00:37.1]} 27...
Nxd8 {[%clk 0:03:35.8]} 28. Rd3 {[%clk 0:00:26.1]} 28... Nc5 {[%clk 0:03:34.6]}
29. Rc3 {[%clk 0:00:23.9]} 29... Kd6 {[%clk 0:03:33.5]} 30. Rd3+ {[%clk
0:00:18]} 30... Nxd3 {[%clk 0:03:32.3]} 0-1

[Event "Live Chess"]
[Site "Chess.com"]
[Date "2023.05.21"]
[Round "-"]
[White "Berdgross"]
[Black "YrrriKharkiv"]
[Result "0-1"]
[WhiteElo "670"]
[BlackElo "2056"]
[TimeControl "300"]
[EndTime "3:29:01 PDT"]
[Termination "YrrriKharkiv won by resignation"]

1. d4 {[%clk 0:04:52.7]} 1... Nf6 {[%clk 0:04:59.4]} 2. e3 {[%clk 0:04:52.5]}
2... c5 {[%clk 0:04:58.4]} 3. Bd3 {[%clk 0:04:49]} 3... g6 {[%clk 0:04:57.9]} 4.
Nf3 {[%clk 0:04:48.4]} 4... Bg7 {[%clk 0:04:49.4]} 5. dxc5 {[%clk 0:04:46.9]}
5... Qa5+ {[%clk 0:04:46.9]} 6. Nc3 {[%clk 0:04:41.2]} 6... Qxc5 {[%clk
0:04:45.5]} 7. Na4 {[%clk 0:04:35.9]} 7... Qc7 {[%clk 0:04:43.1]} 8. O-O {[%clk
0:04:25.3]} 8... O-O {[%clk 0:04:39.4]} 9. a3 {[%clk 0:04:23]} 9... a6 {[%clk
0:04:34.7]} 10. Nc3 {[%clk 0:04:19.1]} 10... d5 {[%clk 0:04:26.2]} 11. e4 {[%clk
0:04:09.6]} 11... d4 {[%clk 0:04:15.1]} 12. Nxd4 {[%clk 0:04:06.4]} 12... Rd8
{[%clk 0:04:09.2]} 13. Nf3 {[%clk 0:03:58.7]} 13... Bg4 {[%clk 0:04:02.9]} 14.
h3 {[%clk 0:03:56.8]} 14... Be6 {[%clk 0:03:59.9]} 15. g3 {[%clk 0:03:42.4]}
15... Bxh3 {[%clk 0:03:57.1]} 16. Bf4 {[%clk 0:03:39]} 16... Qa5 {[%clk
0:03:49.1]} 17. Re1 {[%clk 0:03:35.3]} 17... Bg4 {[%clk 0:03:45.3]} 18. e5
{[%clk 0:03:31]} 18... Nd5 {[%clk 0:03:35.9]} 19. Nxd5 {[%clk 0:03:27.2]} 19...
Qxd5 {[%clk 0:03:31.7]} 20. Be4 {[%clk 0:03:12.9]} 20... Qxd1 {[%clk 0:03:29.3]}
21. Rexd1 {[%clk 0:03:08.7]} 21... Rxd1+ {[%clk 0:03:28.9]} 22. Rxd1 {[%clk
0:03:05.4]} 22... Nc6 {[%clk 0:03:28.5]} 23. Bxc6 {[%clk 0:03:02.7]} 23... bxc6
{[%clk 0:03:26.2]} 24. Nd4 {[%clk 0:02:52]} 24... Bxd1 {[%clk 0:03:23.3]} 25.
Nxc6 {[%clk 0:02:49.4]} 25... Bf8 {[%clk 0:03:13.6]} 26. Nd4 {[%clk 0:02:39.3]}
26... e6 {[%clk 0:03:05.4]} 27. Nc6 {[%clk 0:02:33.7]} 27... Bxc2 {[%clk
0:03:02.4]} 28. Kg2 {[%clk 0:02:29.2]} 28... Be4+ {[%clk 0:03:00.8]} 29. Kh3
{[%clk 0:02:27.6]} 29... Bxc6 {[%clk 0:03:00.3]} 0-1

[Event "Live Chess"]
[Site "Chess.com"]
[Date "2023.05.21"]
[Round "-"]
[White "MJMykh"]
[Black "RockTroll"]
[Result "0-1"]
[WhiteElo "1159"]
[BlackElo "2234"]
[TimeControl "300"]
[EndTime "3:29:05 PDT"]
[Termination "RockTroll won by resignation"]

1. e4 {[%clk 0:04:58.2]} 1... d5 {[%clk 0:04:58]} 2. Nf3 {[%clk 0:04:58.1]} 2...
dxe4 {[%clk 0:04:56.9]} 3. Ng1 {[%clk 0:04:55.9]} 3... Nf6 {[%clk 0:04:55.2]} 4.
Nc3 {[%clk 0:04:55.4]} 4... Bg4 {[%clk 0:04:52.1]} 5. Bb5+ {[%clk 0:04:54.6]}
5... c6 {[%clk 0:04:50.6]} 6. Be2 {[%clk 0:04:53.6]} 6... Bxe2 {[%clk
0:04:49.2]} 7. Qxe2 {[%clk 0:04:52.7]} 7... Nbd7 {[%clk 0:04:45]} 8. Nxe4 {[%clk
0:04:51.5]} 8... Nxe4 {[%clk 0:04:44.9]} 9. Qxe4 {[%clk 0:04:50.7]} 9... Nf6
{[%clk 0:04:44.5]} 10. Qe2 {[%clk 0:04:49.7]} 10... e6 {[%clk 0:04:43.3]} 11.
Qd1 {[%clk 0:04:49.2]} 11... Bd6 {[%clk 0:04:42.3]} 12. a3 {[%clk 0:04:48.7]}
12... O-O {[%clk 0:04:41.7]} 13. Nf3 {[%clk 0:04:48.3]} 13... e5 {[%clk
0:04:39.6]} 14. O-O {[%clk 0:04:47.3]} 14... e4 {[%clk 0:04:38.5]} 15. Ng5
{[%clk 0:04:45.6]} 15... h6 {[%clk 0:04:36.2]} 16. Nh3 {[%clk 0:04:44]} 16...
Qd7 {[%clk 0:04:35.3]} 17. d3 {[%clk 0:04:40.3]} 17... Rad8 {[%clk 0:04:32.9]}
18. dxe4 {[%clk 0:04:39]} 18... Bxh2+ {[%clk 0:04:31.8]} 19. Kxh2 {[%clk
0:04:37.7]} 19... Qxd1 {[%clk 0:04:31.4]} 20. Rxd1 {[%clk 0:04:37.1]} 20... Rxd1
{[%clk 0:04:30.9]} 0-1

[Event "Live Chess"]
[Site "Chess.com"]
[Date "2023.05.21"]
[Round "-"]
[White "bedsdrout"]
[Black "Brooms1989"]
[Result "0-1"]
[WhiteElo "572"]
[BlackElo "1132"]
[TimeControl "300"]
[EndTime "3:29:10 PDT"]
[Termination "Brooms1989 won by resignation"]

1. e3 {[%clk 0:04:51.6]} 1... e5 {[%clk 0:04:57.4]} 2. Bd3 {[%clk 0:04:50.2]}
2... d5 {[%clk 0:04:53.8]} 3. Qh5 {[%clk 0:04:46.9]} 3... Nc6 {[%clk 0:04:48.2]}
4. e4 {[%clk 0:04:45.2]} 4... g6 {[%clk 0:04:45.2]} 5. Qf3 {[%clk 0:04:42.1]}
5... Nd4 {[%clk 0:04:41.8]} 6. Qg3 {[%clk 0:04:25.8]} 6... Bg7 {[%clk 0:04:33]}
7. Nf3 {[%clk 0:04:15.5]} 7... Nxf3+ {[%clk 0:04:27.8]} 8. Qxf3 {[%clk
0:04:10.8]} 8... dxe4 {[%clk 0:04:23.6]} 9. Qxe4 {[%clk 0:04:00.2]} 9... c6
{[%clk 0:04:19.3]} 10. Qf3 {[%clk 0:03:58.6]} 10... Nf6 {[%clk 0:04:15.4]} 11.
Bc4 {[%clk 0:03:55.5]} 11... O-O {[%clk 0:04:12.2]} 12. Bd3 {[%clk 0:03:49.8]}
12... e4 {[%clk 0:04:08.9]} 13. Qh3 {[%clk 0:03:43.8]} 13... Bxh3 {[%clk
0:04:06.1]} 14. O-O {[%clk 0:03:35.8]} 14... exd3 {[%clk 0:03:54.7]} 15. cxd3
{[%clk 0:03:32.8]} 15... Bf5 {[%clk 0:03:52.7]} 16. d4 {[%clk 0:03:23.7]} 16...
Qxd4 {[%clk 0:03:50.1]} 17. Nc3 {[%clk 0:03:15.5]} 17... Nd5 {[%clk 0:03:45.9]}
18. d3 {[%clk 0:03:07.4]} 18... Nxc3 {[%clk 0:03:37.7]} 19. Bd2 {[%clk
0:02:57.7]} 19... Nb5 {[%clk 0:03:31]} 20. Rfe1 {[%clk 0:02:55.4]} 20... Rae8
{[%clk 0:03:28.9]} 21. Rac1 {[%clk 0:02:52.9]} 21... Rxe1+ {[%clk 0:03:23.2]}
22. Rxe1 {[%clk 0:02:51.1]} 22... Qxb2 {[%clk 0:03:21.8]} 23. Rc1 {[%clk
0:02:48.2]} 23... Re8 {[%clk 0:03:18]} 24. h3 {[%clk 0:02:40.8]} 24... Be5
{[%clk 0:03:14.7]} 25. Kf1 {[%clk 0:02:38.2]} 25... Qxd2 {[%clk 0:03:13.4]} 26.
Ra1 {[%clk 0:02:31.1]} 26... Bxa1 {[%clk 0:03:07.4]} 27. Kg1 {[%clk 0:02:27.4]}
27... Be5 {[%clk 0:03:02.6]} 0-1

[Event "Live Chess"]
[Site "Chess.com"]
[Date "2023.05.21"]
[Round "-"]
[White "JanMur7"]
[Black "DoYouLikeCurry"]
[Result "1-0"]
[WhiteElo "1968"]
[BlackElo "1397"]
[TimeControl "300"]
[EndTime "3:29:12 PDT"]
[Termination "JanMur7 won by resignation"]

1. e4 {[%clk 0:04:58.1]} 1... c6 {[%clk 0:04:59.3]} 2. d4 {[%clk 0:04:56.8]}
2... d5 {[%clk 0:04:58.9]} 3. Nc3 {[%clk 0:04:56.4]} 3... dxe4 {[%clk 0:04:58]}
4. Nxe4 {[%clk 0:04:56.3]} 4... Bf5 {[%clk 0:04:57.3]} 5. Ng3 {[%clk 0:04:55.2]}
5... Bg6 {[%clk 0:04:56.7]} 6. Nf3 {[%clk 0:04:54.8]} 6... Nd7 {[%clk
0:04:55.2]} 7. Bd3 {[%clk 0:04:54.2]} 7... Bxd3 {[%clk 0:04:53.2]} 8. Qxd3
{[%clk 0:04:54.1]} 8... e6 {[%clk 0:04:49.8]} 9. O-O {[%clk 0:04:53.4]} 9...
Ngf6 {[%clk 0:04:47.1]} 10. c3 {[%clk 0:04:51.6]} 10... Bd6 {[%clk 0:04:45.3]}
11. Ne4 {[%clk 0:04:50.4]} 11... Nxe4 {[%clk 0:04:42.6]} 12. Qxe4 {[%clk
0:04:50.3]} 12... Qc7 {[%clk 0:04:39.1]} 13. h3 {[%clk 0:04:48.6]} 13... O-O-O
{[%clk 0:04:37.6]} 14. a4 {[%clk 0:04:46.2]} 14... Rdg8 {[%clk 0:04:32.6]} 15.
a5 {[%clk 0:04:44.4]} 15... a6 {[%clk 0:04:31.2]} 16. Nd2 {[%clk 0:04:41.2]}
16... h5 {[%clk 0:04:30.2]} 17. Nc4 {[%clk 0:04:39.7]} 17... g5 {[%clk
0:04:27.4]} 18. Nxd6+ {[%clk 0:04:30.9]} 18... Qxd6 {[%clk 0:04:26.2]} 19. f4
{[%clk 0:04:20]} 19... g4 {[%clk 0:04:23.5]} 20. h4 {[%clk 0:04:17.9]} 20... f5
{[%clk 0:04:19.1]} 21. Qe3 {[%clk 0:04:15.4]} 21... Nf8 {[%clk 0:04:16.1]} 22.
g3 {[%clk 0:04:07.8]} 22... Ng6 {[%clk 0:04:12.1]} 23. Re1 {[%clk 0:04:05.2]}
23... Re8 {[%clk 0:03:54.8]} 24. b3 {[%clk 0:04:02.9]} 24... e5 {[%clk
0:03:51.3]} 25. dxe5 {[%clk 0:03:59.2]} 25... Nxe5 {[%clk 0:03:50.5]} 26. fxe5
{[%clk 0:03:56.9]} 26... Rxe5 {[%clk 0:03:49.6]} 27. Qxe5 {[%clk 0:03:55.7]}
27... Qd3 {[%clk 0:03:38]} 28. Qxh8+ {[%clk 0:03:52]} 1-0

[Event "Live Chess"]
[Site "Chess.com"]
[Date "2023.05.21"]
[Round "-"]
[White "The_Straightforward_Rook"]
[Black "LL220284LL"]
[Result "0-1"]
[WhiteElo "1950"]
[BlackElo "2321"]
[TimeControl "300"]
[EndTime "3:29:29 PDT"]
[Termination "LL220284LL won by resignation"]

1. e4 {[%clk 0:04:54.6]} 1... Nf6 {[%clk 0:04:59.9]} 2. Nc3 {[%clk 0:04:52.1]}
2... Nc6 {[%clk 0:04:56.8]} 3. Nf3 {[%clk 0:04:48.7]} 3... d6 {[%clk 0:04:53.7]}
4. d4 {[%clk 0:04:46.2]} 4... Bg4 {[%clk 0:04:52.5]} 5. Bb5 {[%clk 0:04:38]}
5... a6 {[%clk 0:04:48.8]} 6. Ba4 {[%clk 0:04:35.2]} 6... b5 {[%clk 0:04:41]} 7.
Bb3 {[%clk 0:04:34.2]} 7... e6 {[%clk 0:04:40.1]} 8. Qd3 {[%clk 0:04:25.4]} 8...
Be7 {[%clk 0:04:35]} 9. Bg5 {[%clk 0:04:22]} 9... h6 {[%clk 0:04:32.8]} 10. Bh4
{[%clk 0:04:20.7]} 10... e5 {[%clk 0:04:31.1]} 11. Bxf6 {[%clk 0:04:13.8]} 11...
Bxf6 {[%clk 0:04:28.5]} 12. Bd5 {[%clk 0:04:13.1]} 12... Bd7 {[%clk 0:04:23.2]}
13. dxe5 {[%clk 0:04:07.4]} 13... Bxe5 {[%clk 0:04:15.4]} 14. Nxe5 {[%clk
0:03:57.6]} 14... Nxe5 {[%clk 0:04:12.9]} 15. Qg3 {[%clk 0:03:56.7]} 15... O-O
{[%clk 0:04:02.9]} 16. Bxa8 {[%clk 0:03:54.7]} 16... Qxa8 {[%clk 0:04:02.8]} 17.
O-O {[%clk 0:03:50.1]} 17... b4 {[%clk 0:04:00.3]} 18. Nd5 {[%clk 0:03:48.9]}
18... Qb7 {[%clk 0:03:56.7]} 19. f4 {[%clk 0:03:45]} 19... Nc4 {[%clk
0:03:54.5]} 20. Nf6+ {[%clk 0:03:41.6]} 20... Kh8 {[%clk 0:03:52.3]} 21. Nxd7
{[%clk 0:03:41.5]} 21... Rd8 {[%clk 0:03:50.9]} 22. Nf6 {[%clk 0:03:20.8]} 22...
gxf6 {[%clk 0:03:49]} 23. Qh4 {[%clk 0:03:20.5]} 23... Kg7 {[%clk 0:03:45]} 24.
Rf3 {[%clk 0:03:19.8]} 24... Qxe4 {[%clk 0:03:39.6]} 25. Rg3+ {[%clk 0:03:19]}
25... Kf8 {[%clk 0:03:39.1]} 26. Qxf6 {[%clk 0:03:15.6]} 26... Re8 {[%clk
0:03:34.7]} 27. Rf1 {[%clk 0:02:40]} 27... Re6 {[%clk 0:03:30.3]} 28. Qd8+
{[%clk 0:02:33.4]} 28... Re8 {[%clk 0:03:28.6]} 29. Qxc7 {[%clk 0:02:31.3]}
29... Qd4+ {[%clk 0:03:23.7]} 30. Kh1 {[%clk 0:02:28.4]} 30... Nd2 {[%clk
0:03:15.4]} 31. Rd3 {[%clk 0:02:19.7]} 31... Qf2 {[%clk 0:03:07.5]} 32. Qxd6+
{[%clk 0:02:13]} 32... Kg8 {[%clk 0:03:05.2]} 33. Rg1 {[%clk 0:01:57.9]} 33...
Re1 {[%clk 0:02:53.5]} 34. Rg3+ {[%clk 0:01:32.7]} 34... Kh7 {[%clk 0:02:51.6]}
35. Qd3+ {[%clk 0:00:33.4]} 35... Ne4 {[%clk 0:02:50.1]} 36. Qxe4+ {[%clk
0:00:24.4]} 36... Rxe4 {[%clk 0:02:48.9]} 37. Rf3 {[%clk 0:00:15.7]} 37... Qxc2
{[%clk 0:02:46.2]} 0-1